bitfinex/quotes_SOLUSD_20240703
["timestamp","ask_amount","ask_price","bid_price","bid_amount"]
[1719992404561,20.41,147.47,147.35,61.92]
[1719992404562,15.48,147.41,147.35,16.1588]
[1719992404868,16.9584,147.42,147.35,16.1588]
[1719992404869,15.48,147.37,147.35,16.1588]
[1719992405180,22.2657,147.37,147.33,6.7873]
[1719992405760,22.2658,147.37,147.32,31.8078]
[1719992405986,22.2658,147.37,147.33,6.7871]
[1719992405987,15.48,147.37,147.33,6.7871]
[1719992406286,15.48,147.37,147.32,31.8078]
[1719992406469,15.48,147.37,147.34,6.787]
[1719992406676,82.33,147.42,147.34,15.48]
[1719992406677,15.48,147.39,147.34,15.48]
[1719992406884,15.48,147.39,147.35,6.7864]
[1719992407084,6.7847,147.39,147.35,6.7864]
[1719992407258,15.48,147.38,147.35,6.7864]
[1719992407675,15.48,147.39,147.35,6.7864]
[1719992408195,16.9581,147.43,147.36,15.48]
[1719992408375,15.48,147.4,147.32,16.3278]
[1719992408681,6.7848,147.39,147.35,15.48]
[1719992408877,22.2648,147.39,147.34,6.7866]
[1719992409283,22.2648,147.39,147.34,22.2666]
[1719992409674,6.7848,147.39,147.34,6.7866]
[1719992409885,20.41,147.4,147.32,16.3278]
[1719992410064,22.2662,147.36,147.32,16.3278]
[1719992410665,22.2662,147.36,147.32,23.1156]
[1719992410965,22.2662,147.36,147.31,6.7882]
[1719992411169,6.7859,147.37,147.32,6.7877]
[1719992411374,15.48,147.36,147.32,6.7877]
[1719992412491,57.3693,147.42,147.3,6.3001]
[1719992412702,57.3693,147.42,147.35,15.48]
[1719992412987,6.7844,147.4,147.35,22.2662]
[1719992413169,26.7847,147.39,147.35,22.2662]
[1719992413695,6.7851,147.38,147.34,22.2669]
[1719992413896,22.2651,147.38,147.34,22.2669]
[1719992415496,22.2651,147.38,147.34,6.7869]
[1719992415699,22.2651,147.38,147.34,22.2669]
[1719992416195,22.2651,147.38,147.34,6.7869]
[1719992416396,21.9351,147.38,147.34,6.7869]
[1719992417798,21.9351,147.38,147.34,22.2669]
[1719992418485,6.4551,147.38,147.34,22.2669]
[1719992419190,6.7849,147.39,147.34,22.2669]
[1719992419398,22.2649,147.39,147.34,22.2669]
[1719992419779,15.48,147.39,147.34,15.48]
[1719992419983,6.7861,147.36,147.32,6.7876]
[1719992420200,15.48,147.38,147.32,6.7876]
[1719992420201,6.7857,147.37,147.33,15.48]
[1719992420379,6.7857,147.37,147.33,22.2673]
[1719992420575,15.48,147.38,147.31,0.34]
[1719992420892,6.7857,147.37,147.33,22.2673]
[1719992421094,22.2653,147.38,147.33,22.2673]
[1719992421788,15.48,147.36,147.3,6.3001]
[1719992421989,15.48,147.34,147.29,16.3206]
[1719992422180,15.48,147.33,147.29,16.3206]
[1719992422500,22.2671,147.34,147.3,6.7887]
[1719992422701,6.7876,147.33,147.29,15.48]
[1719992422886,22.2676,147.33,147.28,15.48]
[1719992423788,22.2676,147.33,147.29,6.7892]
[1719992424498,37.3757,147.36,147.27,6.7898]
[1719992424803,6.7884,147.31,147.26,22.0161]
[1719992424991,15.48,147.29,147.26,22.0161]
[1719992425182,6.7879,147.32,147.27,6.7902]
[1719992425387,15.48,147.31,147.28,6.7897]
[1719992426203,15.48,147.3,147.26,22.0161]
[1719992426379,15.48,147.3,147.26,6.7906]
[1719992426688,36.8586,147.34,147.26,6.7906]
[1719992426884,15.48,147.3,147.26,6.7906]
[1719992427394,22.2689,147.3,147.26,6.7906]
[1719992427986,22.2689,147.3,147.25,6.7908]
[1719992428191,22.2693,147.29,147.25,6.7908]
[1719992428401,6.7893,147.29,147.25,6.7908]
[1719992428578,15.48,147.28,147.25,6.7908]
[1719992430307,20.17,147.33,147.25,15.48]
[1719992430614,15.48,147.3,147.27,6.79]
[1719992431181,15.48,147.3,147.25,22.2707]
[1719992431694,15.48,147.29,147.25,6.7907]
[1719992432311,22.2693,147.29,147.25,6.7907]
[1719992432493,15.48,147.29,147.25,15.48]
[1719992432806,6.7886,147.31,147.25,15.48]
[1719992432997,35.48,147.3,147.26,6.7904]
[1719992433196,42.2689,147.3,147.26,6.7904]
[1719992433508,42.2689,147.3,147.25,6.7909]
[1719992433509,15.48,147.29,147.25,6.7909]
[1719992434100,15.48,147.29,147.25,22.2709]
[1719992434486,15.48,147.29,147.26,6.7905]
[1719992434689,42.2689,147.3,147.26,6.7905]
[1719992434885,23.53498337,147.34,147.26,15.48]
[1719992435120,22.2682,147.32,147.27,15.48]
[1719992435417,22.2682,147.32,147.27,22.27]
[1719992436206,6.7884,147.31,147.27,22.27]
[1719992437011,22.2681,147.32,147.27,22.27]
[1719992437726,22.2681,147.32,147.28,6.7897]
[1719992438427,22.2681,147.32,147.27,22.27]
[1719992438597,6.7884,147.31,147.27,22.27]
[1719992441140,6.7894,147.29,147.26,15.48]
[1719992441424,22.2694,147.29,147.24,15.48]
[1719992442012,22.2694,147.29,147.25,6.7909]
[1719992442212,6.7894,147.29,147.25,22.2709]
[1719992442510,22.269,147.3,147.25,22.2709]
[1719992443225,22.269,147.3,147.26,6.7906]
[1719992443413,109.59769178,147.71,147.35,6.7865]
[1719992443414,7.08532869,147.36,147.35,6.7865]
[1719992443622,30.7219,147.42,147.35,15.48]
[1719992443928,6.5913,147.43,147.39,15.48]
[1719992443929,6.7829,147.43,147.39,15.48]
[1719992445722,6.7829,147.43,147.38,6.7847]
[1719992446017,20.0,147.42,147.34,6.7866]
[1719992446229,6.7844,147.4,147.35,6.7864]
[1719992446393,20.0,147.42,147.31,31.0]
[1719992446596,6.7836,147.42,147.37,6.7855]
[1719992447997,20.0,147.44,147.37,6.7855]
[1719992447998,6.7839,147.41,147.37,6.7855]
[1719992448339,6.7839,147.41,147.36,6.7859]
[1719992449497,6.7834,147.42,147.37,6.7854]
[1719992453330,20.0,147.44,147.33,31.0]
[1719992453331,37.5374,147.43,147.33,31.0]
[1719992453533,20.17,147.42,147.3,36.44675638]
[1719992453731,20.17,147.42,147.31,20.0]
[1719992453907,6.7852,147.38,147.33,6.7873]
[1719992454107,6.7852,147.38,147.31,20.0]
[1719992454512,6.7852,147.38,147.33,6.7873]
[1719992454910,6.7852,147.38,147.34,6.7869]
[1719992455408,21.9511,147.39,147.34,6.7869]
[1719992455927,21.9511,147.39,147.35,6.7865]
[1719992456331,21.9511,147.39,147.34,6.7868]
[1719992457417,21.9511,147.39,147.3,31.0]
[1719992457418,26.7852,147.38,147.3,31.0]
[1719992457630,26.7852,147.38,147.33,6.7872]
[1719992459316,6.7857,147.37,147.33,6.7872]
[1719992459518,6.7857,147.37,147.32,6.7878]
[1719992460234,6.7857,147.37,147.33,6.7873]
[1719992461136,6.7857,147.37,147.29,15.8613]
[1719992461323,26.8359,147.36,147.29,6.7889]
[1719992461634,26.8359,147.36,147.24,16.2399]
[1719992461635,15.4404,147.34,147.24,16.2399]
[1719992461931,6.7882,147.32,147.27,6.7899]
[1719992462434,26.7876,147.33,147.28,6.7897]
[1719992462845,0.17,147.32,147.22,5.468105]
[1719992463015,6.7886,147.31,147.27,6.7902]
[1719992463212,7.128,147.32,147.27,6.7902]
[1719992467251,6.7884,147.31,147.27,6.7902]
[1719992467631,6.7884,147.31,147.21,31.0]
[1719992467835,26.4713,147.3,147.2,22.6645]
[1719992468355,32.9202,147.3,147.25,6.7908]
[1719992469633,32.9202,147.3,147.26,6.7907]
[1719992470128,6.7899,147.28,147.2,22.6645]
[1719992470330,26.1313,147.3,147.24,6.7915]
[1719992470543,6.7897,147.29,147.24,6.7915]
[1719992470850,6.7895,147.29,147.25,6.7911]
[1719992471346,6.7895,147.29,147.24,6.7914]
[1719992471555,6.7898,147.28,147.2,22.6645]
[1719992472533,6.7898,147.28,147.19,31.0]
[1719992472534,6.7906,147.27,147.19,31.0]
[1719992472733,6.7907,147.26,147.22,6.7924]
[1719992473153,6.7903,147.27,147.22,6.7924]
[1719992473352,16.5003,147.28,147.16,22.9189]
[1719992473353,33.475,147.28,147.16,22.9189]
[1719992473535,6.7913,147.25,147.2,6.7931]
[1719992473735,22.3316,147.24,147.2,22.3331]
[1719992473935,22.3316,147.24,147.2,6.7931]
[1719992474158,15.54,147.24,147.2,22.3331]
[1719992474460,15.54,147.24,147.21,6.7929]
[1719992475643,6.7921,147.23,147.18,6.7941]
[1719992476440,37.3869,147.26,147.16,6.7948]
[1719992476441,6.7926,147.22,147.16,6.7948]
[1719992476774,68.4869,147.26,147.17,6.7945]
[1719992477061,6.7927,147.22,147.17,6.7945]
[1719992478041,6.7921,147.23,147.18,6.7943]
[1719992478240,20.0,147.22,147.18,6.7943]
[1719992479365,26.7925,147.22,147.18,6.7943]
[1719992480389,6.793,147.21,147.17,6.7946]
[1719992480671,6.7941,147.19,147.15,0.8416104]
[1719992481238,6.7941,147.19,147.15,7.6373104]
[1719992481553,6.7936,147.2,147.15,7.6373104]
[1719992482144,20.41,147.21,147.15,0.8416104]
[1719992482354,6.7948,147.17,147.15,0.8416104]
[1719992482756,6.7945,147.18,147.15,0.8416104]
[1719992484546,6.7941,147.19,147.15,0.8416104]
[1719992484749,26.7944,147.18,147.15,0.8416104]
[1719992484946,6.7944,147.18,147.15,0.8416104]
[1719992485147,74.3912,147.22,147.15,0.8416104]
[1719992485362,0.17,147.21,147.15,0.8416104]
[1719992485673,6.7942,147.19,147.15,0.8416104]
[1719992485851,20.0,147.18,147.15,0.8416104]
[1719992486169,26.7944,147.18,147.15,0.8416104]
[1719992486472,26.7945,147.18,147.15,0.8416104]
[1719992487382,20.0,147.18,147.15,0.8416104]
[1719992488975,26.7945,147.18,147.15,0.8416104]
[1719992490181,33.6412,147.22,147.15,0.8416104]
[1719992490389,6.7944,147.18,147.15,0.8416104]
[1719992490575,6.7935,147.2,147.15,7.6370104]
[1719992491254,6.7942,147.19,147.15,0.8416104]
[1719992492083,6.7944,147.18,147.15,0.8416104]
[1719992492783,6.7935,147.2,147.15,0.8416104]
[1719992493971,6.7935,147.2,147.16,6.7952]
[1719992494549,20.0,147.21,147.15,0.8416104]
[1719992494550,20.0,147.21,147.15,17.2298104]
[1719992494749,7.0806315,147.25,147.16,0.17]
[1719992494967,6.7913,147.25,147.2,6.7931]
[1719992495664,6.7913,147.25,147.17,31.1]
[1719992495855,6.7916,147.25,147.2,6.7933]
[1719992496068,6.7916,147.24,147.19,6.7937]
[1719992496566,6.7922,147.23,147.19,6.7937]
[1719992496901,16.9768,147.26,147.17,31.1]
[1719992497067,6.7928,147.22,147.17,37.8946]
[1719992497266,6.7928,147.22,147.17,6.7946]
[1719992497781,6.7928,147.22,147.19,15.54]
[1719992497981,6.7922,147.23,147.19,15.54]
[1719992498283,15.54,147.26,147.21,15.54]
[1719992498484,6.7916,147.24,147.21,15.54]
[1719992498678,6.7916,147.24,147.22,15.54]
[1719992498877,6.792,147.23,147.18,6.7942]
[1719992499078,6.792,147.23,147.2,15.54]
[1719992499278,35.54,147.25,147.2,15.54]
[1719992499791,6.7923,147.23,147.2,15.54]
[1719992501287,6.7918,147.24,147.2,15.54]
[1719992501478,6.7918,147.24,147.21,15.54]
[1719992502574,6.7925,147.22,147.17,6.7947]
[1719992502891,6.7925,147.22,147.2,15.54]
[1719992503096,6.7925,147.22,147.17,6.7946]
[1719992503097,6.7926,147.22,147.17,6.7946]
[1719992503389,6.7926,147.22,147.19,15.54]
[1719992503690,15.54,147.24,147.15,23.5073104]
[1719992503987,6.7936,147.2,147.17,15.54]
[1719992504293,15.54,147.19,147.15,0.8416104]
[1719992504473,6.7948,147.17,147.15,0.8416104]
[1719992504676,6.7945,147.18,147.15,0.8416104]
[1719992504874,32.526,147.18,147.15,0.8416104]
[1719992505190,6.7949,147.17,147.15,0.8416104]
[1719992506392,6.7945,147.18,147.15,0.8416104]
[1719992506571,22.3341,147.19,147.15,0.8416104]
[1719992506770,20.0,147.18,147.15,0.8416104]
[1719992507231,20.0,147.18,147.15,16.3816104]
[1719992508377,26.7945,147.18,147.15,16.3816104]
[1719992509376,6.7953,147.16,147.15,0.8416104]
[1719992509574,6.795,147.17,147.15,0.8416104]
[1719992510985,26.7945,147.18,147.15,0.8416104]
[1719992511188,6.7953,147.16,147.15,0.8416104]
[1719992514307,15.54,147.17,147.15,0.8416104]
[1719992514497,42.3353,147.16,147.15,0.8416104]
[1719992516007,22.3353,147.16,147.15,0.8416104]
[1719992516402,42.3353,147.16,147.15,0.8416104]
[1719992517193,26.7953,147.16,147.15,0.8416104]
[1719992519302,20.0,147.16,147.15,0.8416104]
[1719992520103,26.7953,147.16,147.15,0.8416104]
[1719992523825,37.394,147.2,147.15,0.8416104]
[1719992523826,6.7938,147.2,147.16,6.7952]
[1719992523995,6.7935,147.2,147.17,45.0]
[1719992524332,6.794,147.19,147.17,45.0]
[1719992524690,15.54,147.21,147.17,45.0]
[1719992525007,22.3344,147.18,147.17,45.0]
[1719992527817,6.7944,147.18,147.17,45.0]
[1719992528018,22.3344,147.18,147.17,45.0]
[1719992528208,6.7944,147.18,147.17,45.0]
[1719992531806,22.3344,147.18,147.17,45.0]
[1719992534124,15.54,147.18,147.17,45.0]
[1719992534308,22.334,147.19,147.17,45.0]
[1719992534718,22.3335,147.2,147.16,6.7952]
[1719992534901,20.0,147.19,147.16,6.7952]
[1719992536098,6.7932,147.21,147.17,6.7948]
[1719992536303,20.0,147.2,147.16,22.3351]
[1719992537503,26.7935,147.2,147.16,6.7951]
[1719992537702,35.54,147.2,147.15,0.8416104]
[1719992537906,6.7941,147.19,147.15,16.3816104]
[1719992538109,6.7941,147.19,147.15,23.1772104]
[1719992538503,26.7934,147.2,147.16,6.7952]
[1719992538710,15.54,147.22,147.17,15.54]
[1719992538905,35.54,147.21,147.17,15.54]
[1719992539109,20.0,147.21,147.17,22.3345]
[1719992539425,6.7933,147.21,147.17,15.54]
[1719992540213,6.7933,147.21,147.17,22.3347]
[1719992541117,20.0,147.24,147.19,6.7936]
[1719992541429,22.3324,147.23,147.18,22.3342]
[1719992541730,20.0,147.22,147.18,15.54]
[1719992541903,35.54,147.22,147.17,38.9715]
[1719992542242,20.0,147.22,147.18,15.54]
[1719992542929,6.7931,147.21,147.18,15.54]
[1719992543223,6.7931,147.21,147.17,32.1768]
[1719992545536,6.7935,147.2,147.17,16.6368]
[1719992545715,6.7931,147.21,147.17,32.1768]
[1719992546020,42.3326,147.22,147.17,38.9714]
[1719992546223,26.7926,147.22,147.18,15.54]
[1719992546746,6.7922,147.23,147.17,16.6368]
[1719992546910,6.7922,147.23,147.2,15.54]
[1719992547223,6.7922,147.23,147.19,15.54]
[1719992548526,6.7922,147.23,147.2,15.54]
[1719992550635,6.7916,147.24,147.2,15.54]
[1719992551428,40.32310983,147.27,147.21,15.54]
[1719992551736,35.54,147.26,147.21,15.54]
[1719992552256,20.0,147.26,147.21,15.54]
[1719992552631,6.7913,147.25,147.21,15.54]
[1719992553345,6.7916,147.24,147.21,15.54]
[1719992553936,6.7921,147.23,147.19,12.9361]
[1719992554126,6.7918,147.24,147.21,15.54]
[1719992554512,6.7918,147.24,147.2,15.54]
[1719992555336,6.7918,147.24,147.21,15.54]
[1719992558143,6.7918,147.24,147.2,6.7933]
[1719992558327,6.7918,147.24,147.21,15.54]
[1719992561561,6.7918,147.24,147.2,22.3333]
[1719992561852,6.7918,147.24,147.2,15.54]
[1719992562053,22.3313,147.25,147.2,22.3331]
[1719992562418,6.7916,147.24,147.2,22.3331]
[1719992565148,22.3313,147.25,147.2,22.3331]
[1719992565348,6.7919,147.24,147.19,6.7937]
[1719992565651,15.54,147.23,147.19,6.7937]
[1719992566931,6.7919,147.24,147.19,6.7937]
[1719992567286,6.7919,147.24,147.2,45.0]
[1719992568145,6.7919,147.24,147.2,51.7934]
[1719992570525,6.7913,147.25,147.2,51.7934]
[1719992571152,6.7913,147.25,147.2,67.3334]
[1719992572047,6.7913,147.25,147.2,60.54]
[1719992572259,22.3313,147.25,147.21,6.7929]
[1719992572552,22.3313,147.25,147.22,45.0]
[1719992572751,22.3313,147.25,147.21,6.7928]
[1719992572946,22.3313,147.25,147.22,45.0]
[1719992573743,22.3313,147.25,147.21,45.0]
[1719992573947,22.3313,147.25,147.21,51.7929]
[1719992574782,15.54,147.25,147.21,51.7929]
[1719992575129,42.3308,147.26,147.21,67.3329]
[1719992575329,26.7908,147.26,147.22,22.3323]
[1719992575535,26.7908,147.26,147.23,45.0]
[1719992576035,20.0,147.26,147.23,67.332]
[1719992576248,20.0,147.27,147.23,67.332]
[1719992576445,26.7903,147.27,147.23,67.332]
[1719992576956,26.7903,147.27,147.23,45.0]
[1719992576957,6.7907,147.26,147.23,45.0]
[1719992577152,20.0,147.27,147.23,45.0]
[1719992577153,6.7916,147.24,147.23,45.0]
[1719992577453,22.3316,147.24,147.23,45.0]
[1719992578675,15.54,147.24,147.23,45.0]
[1719992579168,15.54,147.24,147.17,16.6368]
[1719992579369,15.54,147.22,147.18,6.794]
[1719992579544,22.3327,147.22,147.18,6.794]
[1719992579749,6.793,147.21,147.17,22.3347]
[1719992580065,22.3326,147.22,147.18,6.7943]
[1719992580365,15.54,147.22,147.18,6.7943]
[1719992580754,15.54,147.22,147.19,6.7938]
[1719992581264,15.54,147.23,147.19,6.7938]
[1719992581572,22.332,147.23,147.19,6.7938]
[1719992582337,15.54,147.23,147.2,6.7934]
[1719992582744,15.54,147.24,147.2,6.7934]
[1719992582959,20.0,147.23,147.2,6.7934]
[1719992583977,20.0,147.23,147.2,22.3334]
[1719992585272,6.7917,147.24,147.2,15.54]
[1719992585473,22.3313,147.25,147.2,22.3333]
[1719992585775,20.0,147.24,147.2,22.3333]
[1719992586160,22.3313,147.25,147.2,22.3333]
[1719992586560,6.7913,147.25,147.21,15.54]
[1719992587871,22.3308,147.26,147.21,22.3328]
[1719992588054,6.7903,147.27,147.22,22.3325]
[1719992588257,6.79,147.28,147.24,15.54]
[1719992590078,15.54,147.29,147.24,15.54]
[1719992590079,6.7902,147.27,147.24,15.54]
[1719992591452,23.245,147.31,147.24,22.3316]
[1719992591675,15.54,147.29,147.24,22.3316]
[1719992592460,6.7899,147.28,147.24,15.54]
[1719992592861,6.7909,147.26,147.23,15.54]
[1719992593078,6.7904,147.27,147.23,15.54]
[1719992593761,6.7904,147.27,147.24,15.54]
[1719992595280,6.7898,147.28,147.24,15.54]
[1719992596681,22.3294,147.29,147.24,15.54]
[1719992596862,22.3288,147.3,147.25,22.3307]
[1719992597064,20.0,147.29,147.25,22.3307]
[1719992597971,22.3288,147.3,147.25,22.3307]
[1719992602681,15.54,147.29,147.22,1.35564024]
[1719992602884,6.79,147.28,147.23,6.7917]
[1719992603089,6.79,147.28,147.24,6.7915]
[1719992603269,6.79,147.28,147.24,22.3315]
[1719992603589,22.3294,147.29,147.24,22.3315]
[1719992604680,6.7898,147.28,147.23,6.7918]
[1719992604995,6.7895,147.29,147.24,22.3315]
[1719992605169,22.3295,147.29,147.24,22.3315]
[1719992605775,6.7895,147.29,147.25,22.3311]
[1719992610098,6.7895,147.29,147.25,15.54]
[1719992610308,22.3295,147.29,147.24,22.3314]
[1719992610466,6.7898,147.28,147.24,22.3314]
[1719992610671,22.3295,147.29,147.24,22.3314]
[1719992612697,22.3295,147.29,147.25,6.791]
[1719992613192,15.54,147.29,147.25,6.791]
[1719992615394,6.789,147.3,147.26,6.7906]
[1719992615609,15.54,147.3,147.26,6.7906]
[1719992618078,22.3288,147.3,147.26,6.7906]
[1719992618394,15.54,147.3,147.26,6.7906]
[1719992618598,22.3285,147.31,147.26,6.7906]
[1719992619401,22.3285,147.31,147.26,22.3306]
[1719992620704,22.3285,147.31,147.27,6.7902]
[1719992621500,22.3285,147.31,147.26,22.3305]
[1719992623192,22.3285,147.31,147.26,6.7905]
[1719992623395,22.3285,147.31,147.26,22.3305]
[1719992629401,6.7889,147.3,147.26,15.54]
[1719992630285,6.7889,147.3,147.25,7.53796199]
[1719992631207,33.9404,147.32,147.24,15.1609]
[1719992631394,15.54,147.28,147.24,15.1609]
[1719992631596,15.54,147.28,147.24,37.4924]
[1719992632808,22.3295,147.29,147.24,37.4924]
[1719992633014,15.54,147.29,147.25,6.7911]
[1719992633996,22.3293,147.29,147.25,6.7911]
[1719992634512,15.54,147.28,147.24,21.9524]
[1719992635195,15.54,147.28,147.24,21.9521]
[1719992637726,15.54,147.27,147.24,21.9521]
[1719992638617,15.54,147.27,147.25,6.7911]
[1719992638816,6.7896,147.29,147.25,6.7911]
[1719992639018,15.54,147.27,147.25,6.7911]
[1719992640021,6.7899,147.28,147.23,6.7917]
[1719992640188,15.54,147.26,147.23,6.7917]
[1719992640589,15.54,147.25,147.24,6.7914]
[1719992641819,15.54,147.26,147.24,6.7914]
[1719992643118,15.54,147.25,147.21,6.7927]
[1719992643303,35.98,147.28,147.17,6.5465]
[1719992643304,68.5679,147.28,147.19,6.7935]
[1719992643509,15.54,147.2,147.17,22.0474]
[1719992643922,15.54,147.19,147.16,6.7952]
[1719992644212,15.54,147.19,147.18,6.7944]
[1719992644422,15.54,147.2,147.18,6.7944]
[1719992644791,16.9792,147.24,147.15,0.8416104]
[1719992644995,15.54,147.2,147.18,6.794]
[1719992645325,15.54,147.22,147.19,6.7938]
[1719992645700,15.54,147.21,147.18,6.7942]
[1719992646203,15.54,147.21,147.19,45.0]
[1719992646611,15.54,147.22,147.19,45.0]
[1719992647324,26.7921,147.23,147.19,51.7938]
[1719992647325,20.0,147.23,147.19,51.7938]
[1719992647821,15.54,147.22,147.19,51.7938]
[1719992648021,6.7907,147.26,147.21,6.7928]
[1719992648321,15.54,147.25,147.22,51.7924]
[1719992648725,15.54,147.25,147.22,45.0]
[1719992649226,22.3312,147.25,147.22,45.0]
[1719992649422,15.54,147.25,147.21,51.7929]
[1719992649720,15.54,147.25,147.21,45.0]
[1719992649721,15.54,147.24,147.21,45.0]
[1719992650102,98.2133,147.28,147.21,51.7929]
[1719992650103,6.7908,147.26,147.21,51.7929]
[1719992650307,15.54,147.25,147.21,51.7929]
[1719992650630,15.54,147.25,147.22,6.7925]
[1719992650809,15.54,147.26,147.23,45.0]
[1719992651012,22.3307,147.26,147.23,45.0]
[1719992651213,15.54,147.25,147.22,45.0]
[1719992653030,22.3312,147.25,147.22,45.0]
[1719992653213,22.3312,147.25,147.2,22.3333]
[1719992654632,22.3312,147.25,147.2,6.7933]
[1719992654808,22.3312,147.25,147.2,22.3333]
[1719992655729,6.7924,147.23,147.18,6.794]
[1719992655903,6.7917,147.24,147.2,15.54]
[1719992656107,22.3313,147.25,147.2,22.3334]
[1719992657021,22.3313,147.25,147.21,6.7929]
[1719992657346,15.54,147.26,147.22,6.7924]
[1719992657625,22.3306,147.27,147.22,22.3324]
[1719992658013,22.3319,147.24,147.19,6.7936]
[1719992658328,6.7929,147.22,147.17,22.6779]
[1719992658536,16.9772,147.26,147.17,15.8834]
[1719992658537,15.54,147.23,147.17,15.8834]
[1719992658744,15.54,147.23,147.19,6.7939]
[1719992658907,15.54,147.24,147.2,6.7934]
[1719992659228,22.3313,147.25,147.2,15.54]
[1719992659406,22.3313,147.25,147.21,6.793]
[1719992659407,15.54,147.25,147.21,6.793]
[1719992661009,22.3312,147.25,147.2,6.7933]
[1719992661220,22.3312,147.25,147.2,22.3333]
[1719992661441,6.7916,147.24,147.19,6.7937]
[1719992661630,6.7916,147.24,147.2,15.54]
[1719992661941,22.3316,147.24,147.19,22.3337]
[1719992664253,22.3316,147.24,147.19,6.7937]
[1719992664746,6.7916,147.24,147.19,6.7937]
[1719992664956,6.7921,147.23,147.18,6.7942]
[1719992665153,15.54,147.21,147.18,6.7942]
[1719992665659,15.54,147.21,147.19,6.7938]
[1719992665856,15.54,147.21,147.17,15.8834]
[1719992666160,15.54,147.2,147.17,15.8834]
[1719992666359,15.54,147.2,147.17,22.678]
[1719992666518,15.54,147.2,147.18,6.7943]
[1719992667370,15.8096,147.24,147.16,6.795]
[1719992667561,15.54,147.19,147.17,6.7947]
[1719992668437,15.54,147.19,147.16,6.7951]
[1719992669537,15.54,147.19,147.17,6.7948]
[1719992670252,6.7927,147.22,147.17,6.7945]
[1719992670448,15.54,147.19,147.17,6.7945]
[1719992673458,15.54,147.2,147.17,6.7945]
[1719992674261,15.54,147.19,147.16,6.7952]
[1719992676066,15.54,147.19,147.17,6.7947]
[1719992676365,15.54,147.2,147.17,6.7947]
[1719992676765,7.07833554,147.23,147.19,6.7938]
[1719992677068,35.54,147.22,147.19,6.7938]
[1719992678669,35.54,147.22,147.18,6.7942]
[1719992679444,42.3325,147.22,147.18,6.7942]
[1719992679971,6.793,147.21,147.17,15.54]
[1719992680275,15.54,147.21,147.17,6.7945]
[1719992682371,22.333,147.21,147.17,6.7945]
[1719992682566,6.793,147.21,147.17,6.7945]
[1719992682879,22.333,147.21,147.17,6.7945]
[1719992684085,15.54,147.21,147.17,6.7945]
[1719992686154,22.3331,147.21,147.16,22.3351]
[1719992686360,6.7935,147.2,147.16,6.7952]
[1719992686562,15.54,147.2,147.16,6.7952]
[1719992686762,20.0,147.22,147.15,0.8416104]
[1719992686966,20.0,147.22,147.18,6.7942]
[1719992687149,42.3326,147.22,147.18,6.7942]
[1719992687645,15.54,147.21,147.18,6.7942]
[1719992688156,22.3331,147.21,147.15,0.8416104]
[1719992688369,15.54,147.2,147.15,16.3816104]
[1719992689760,15.54,147.2,147.17,6.7947]
[1719992689963,22.3335,147.2,147.15,23.1770104]